bitfinex-derivatives/quotes_SOLF0:USTF0_20260121
["timestamp","ask_amount","ask_price","bid_price","bid_amount"]
[1769017510521,6.54446266,126.5,126.39,3.26859567]
[1769017510721,6.54446266,126.5,126.31,347.0497]
[1769017510722,117.36676266,126.44,126.33,3.26859567]
[1769017511523,7.1253,126.42,126.33,3.26859567]
[1769017512524,13.66876266,126.44,126.35,3.26859567]
[1769017513029,6.54446266,126.44,126.35,10.39719567]
[1769017514230,6.54446266,126.44,126.33,114.18089567]
[1769017514429,6.54446266,126.44,126.34,3.26859567]
[1769017514825,134.5336,126.47,126.35,3.26859567]
[1769017514826,117.33966266,126.47,126.35,3.26859567]
[1769017515334,13.66706266,126.47,126.37,3.26859567]
[1769017515926,7.123,126.46,126.37,3.26859567]
[1769017516531,7.1236,126.45,126.37,3.26859567]
[1769017516733,7.1236,126.45,126.35,3.23156271]
[1769017516934,6.56415605,126.47,126.35,3.23156271]
[1769017517434,7.123,126.46,126.37,3.23156271]
[1769017518437,7.1236,126.45,126.37,3.23156271]
[1769017518635,110.8153,126.45,126.37,3.23156271]
[1769017518825,7.1251,126.43,126.33,7.13]
[1769017519134,7.1251,126.43,126.34,3.23156271]
[1769017519330,117.35935605,126.47,126.34,3.23156271]
[1769017520334,117.35935605,126.47,126.33,110.9126]
[1769017520335,7.1241,126.44,126.36,3.23156271]
[1769017520940,117.33265605,126.5,126.38,3.23156271]
[1769017521233,110.7751,126.49,126.38,3.23156271]
[1769017521938,7.1222,126.48,126.4,3.23156271]
[1769017522323,7.123,126.46,126.4,3.23156271]
[1769017524038,7.1222,126.48,126.41,3.23156271]
[1769017524340,117.30715605,126.53,126.41,3.23156271]
[1769017524640,7.1208,126.5,126.43,3.23156271]
[1769017524835,110.7179,126.56,126.44,3.23156271]
[1769017525038,7.1185,126.54,126.47,3.23156271]
[1769017525441,110.7338,126.54,126.44,3.23156271]
[1769017526537,7.1207,126.5,126.44,3.23156271]
[1769017527043,7.1201,126.51,126.45,3.23156271]
[1769017527439,7.1194,126.53,126.45,3.23156271]
[1769017527639,110.7266,126.55,126.46,3.23156271]
[1769017528344,110.7179,126.56,126.46,3.23156271]
[1769017528539,6.14587757,126.55,126.44,3.23156271]
[1769017528736,110.7179,126.56,126.44,3.23156271]
[1769017528936,13.2641867,126.55,126.45,10.35486271]
[1769017529137,110.7179,126.56,126.45,10.35486271]
[1769017529434,7.1196,126.52,126.45,3.23156271]
[1769017529630,110.7251,126.55,126.45,3.23156271]
[1769017529840,117.27485605,126.57,126.45,3.23156271]
[1769017530044,110.6934,126.59,126.45,3.23156271]
[1769017530235,6.1480297,126.58,126.45,3.23156271]
[1769017530435,6.56415605,126.6,126.49,3.23156271]
[1769017530735,117.88681405,126.62,126.5,3.23156271]
[1769017530736,110.6675,126.62,126.5,3.23156271]
[1769017530935,6.14634361,126.61,126.52,3.23156271]
[1769017531142,110.6675,126.62,126.52,3.23156271]
[1769017531343,141.59991405,126.65,126.52,3.23156271]
[1769017531344,6.14684377,126.61,126.52,3.23156271]
[1769017531548,7.114,126.62,126.53,7.1188]
[1769017531739,7.114,126.62,126.52,3.23156271]
[1769017531935,110.646,126.64,126.52,3.23156271]
[1769017532136,6.13497735,126.63,126.52,3.23156271]
[1769017532342,7.1145,126.61,126.53,7.1187]
[1769017532544,7.1145,126.61,126.52,3.23156271]
[1769017533549,110.646,126.64,126.52,3.23156271]
[1769017533550,7.1151,126.6,126.52,3.23156271]
[1769017533745,110.6647,126.62,126.48,117.34335605]
[1769017533746,110.6708,126.61,126.49,3.23156271]
[1769017534041,110.6647,126.62,126.49,3.23156271]
[1769017534244,7.1159,126.59,126.5,3.23156271]
[1769017534749,117.21935605,126.63,126.5,3.23156271]
[1769017534935,7.1148,126.61,126.52,10.35086271]
[1769017535348,6.56415605,126.63,126.53,3.23156271]
[1769017535550,13.67795605,126.63,126.53,10.35036271]
[1769017535740,6.56415605,126.63,126.53,10.35036271]
[1769017536042,6.56415605,126.63,126.54,3.23156271]
[1769017536244,7.114,126.62,126.54,3.23156271]
[1769017536440,110.6628,126.62,126.51,7.1198]
[1769017536639,6.14028451,126.61,126.51,10.35136271]
[1769017536841,110.6628,126.62,126.51,10.35136271]
[1769017537037,6.14018426,126.61,126.51,10.35136271]
[1769017537241,110.6628,126.62,126.52,3.23156271]
[1769017537439,110.6785,126.6,126.49,3.23156271]
[1769017537642,6.14294885,126.59,126.49,3.23156271]
[1769017537840,6.14294885,126.59,126.49,10.35266271]
[1769017537841,7.1168,126.57,126.49,10.35266271]
[1769017538041,6.56415605,126.6,126.5,3.23156271]
[1769017538439,7.1146,126.61,126.53,3.23156271]
[1769017538850,7.1138,126.63,126.53,3.23156271]
[1769017539054,6.14456008,126.62,126.53,3.23156271]
[1769017539243,110.6438,126.64,126.53,3.23156271]
[1769017539556,110.6651,126.62,126.53,3.23156271]
[1769017540149,7.1162,126.58,126.5,10.35176271]
[1769017540557,7.1162,126.58,126.51,3.23156271]
[1769017541143,7.1162,126.58,126.52,3.23156271]
[1769017541545,7.1168,126.57,126.52,3.23156271]
[1769017541744,110.6651,126.62,126.52,3.23156271]
[1769017541951,6.15040916,126.61,126.52,3.23156271]
[1769017542151,7.1148,126.61,126.52,3.23156271]
[1769017542556,117.21935605,126.63,126.53,10.35016271]
[1769017542854,6.15036743,126.62,126.53,10.35016271]
[1769017543153,117.21935605,126.63,126.53,10.35016271]
[1769017543353,6.14896983,126.62,126.53,10.35016271]
[1769017543549,7.1151,126.6,126.54,7.1183]
[1769017543751,117.21935605,126.63,126.54,10.34986271]
[1769017543953,6.16530851,126.62,126.54,10.34986271]
[1769017544149,7.115,126.6,126.54,3.23156271]
[1769017544548,7.1144,126.62,126.56,10.34876271]
[1769017544747,110.6372,126.65,126.56,10.34876271]
[1769017544952,6.16490325,126.64,126.56,10.34876271]
[1769017545155,6.16490325,126.63,126.53,3.23156271]
[1769017545349,6.16490325,126.63,126.54,3.23156271]
[1769017545543,13.7834701,126.66,126.54,3.23156271]
[1769017545856,6.16295127,126.65,126.54,3.23156271]
[1769017546053,6.16295127,126.64,126.54,3.23156271]
[1769017546260,117.19295605,126.66,126.54,3.23156271]
[1769017546452,6.15983506,126.65,126.54,3.23156271]
[1769017546653,6.15983506,126.64,126.54,3.23156271]
[1769017546852,117.19295605,126.66,126.54,3.23156271]
[1769017547150,7.1135,126.63,126.55,10.5276629]
[1769017548258,6.56415605,126.66,126.56,7.117]
[1769017548456,6.15620366,126.65,126.56,7.117]
[1769017548659,6.15620366,126.64,126.56,7.117]
[1769017548861,6.56415605,126.66,126.56,7.117]
[1769017549162,6.15619948,126.65,126.56,7.117]
[1769017549366,6.15619948,126.64,126.54,7.1179]
[1769017549574,12.72035553,126.63,126.52,3.4098629]
[1769017549779,7.1151,126.6,126.52,10.5292629]
[1769017549968,117.24565605,126.6,126.49,3.4098629]
[1769017550277,6.15787453,126.59,126.5,7.1206]
[1769017550570,6.15787453,126.58,126.5,7.1206]
[1769017550874,6.56415605,126.6,126.5,7.1206]
[1769017551172,6.15884767,126.59,126.5,7.1206]
[1769017551370,6.56415605,126.6,126.49,3.4098629]
[1769017551577,6.56415605,126.6,126.5,3.4098629]
[1769017551964,7.1156,126.59,126.5,3.4098629]
[1769017552568,6.56415605,126.6,126.51,3.4098629]
[1769017552769,7.1148,126.61,126.51,3.4098629]
[1769017553368,7.1148,126.61,126.51,10.5293629]
[1769017553570,7.1151,126.6,126.52,3.4098629]
[1769017553969,6.16261425,126.59,126.48,3.4098629]
[1769017554174,117.88151405,126.62,126.48,3.4098629]
[1769017554472,7.1161,126.58,126.48,3.4098629]
[1769017554771,117.24355605,126.6,126.48,3.4098629]
[1769017554972,7.1168,126.57,126.48,3.4098629]
[1769017555269,6.16531492,126.59,126.46,117.36165605]
[1769017555270,117.24355605,126.6,126.5,10.5304629]
[1769017555574,6.16624719,126.59,126.5,3.4098629]
[1769017555777,117.24355605,126.6,126.5,3.4098629]
[1769017555978,6.16635456,126.59,126.5,3.4098629]
[1769017556272,6.17018581,126.58,126.5,3.4098629]
[1769017556470,6.1708142,126.57,126.5,3.4098629]
[1769017556668,110.6917,126.59,126.5,3.4098629]
[1769017556869,6.17072591,126.58,126.5,3.4098629]
[1769017557067,6.17504299,126.57,126.5,3.4098629]
[1769017557270,110.6888,126.59,126.5,3.4098629]
[1769017557471,6.17504299,126.58,126.5,3.4098629]
[1769017557680,110.6888,126.59,126.5,3.4098629]
[1769017557866,6.17498922,126.58,126.5,3.4098629]
[1769017558071,6.17498922,126.57,126.49,7.1211]
[1769017558272,110.6888,126.59,126.49,7.1211]
[1769017558474,6.17838196,126.58,126.49,7.1211]
[1769017558779,6.17838196,126.57,126.48,3.22767242]
[1769017558981,6.17891861,126.56,126.45,3.22767242]
[1769017559273,13.39823266,126.56,126.45,3.22767242]
[1769017559473,6.56415605,126.54,126.45,3.22767242]
[1769017559675,6.17891861,126.53,126.45,3.22767242]
[1769017559875,116.92141861,126.53,126.42,3.22767242]
[1769017560082,6.56415605,126.51,126.42,3.22767242]
[1769017560276,6.17891861,126.5,126.37,110.8718]
[1769017560481,6.17891861,126.5,126.38,3.22767242]
[1769017560482,116.94771861,126.5,126.38,3.22767242]
[1769017560686,6.17891861,126.49,126.38,3.22767242]
[1769017560880,6.17891861,126.49,126.39,10.35447242]
[1769017561184,6.17891861,126.49,126.36,3.22767242]
[1769017561185,129.72070484,126.48,126.36,3.22767242]
[1769017561381,6.17891861,126.47,126.36,3.22767242]
[1769017561584,7.1235,126.45,126.36,3.22767242]
[1769017561881,6.19118474,126.44,126.36,3.22767242]
[1769017562178,6.19118474,126.43,126.36,10.35587242]
[1769017562376,7.21931405,126.46,126.36,3.22767242]
[1769017562576,6.19162724,126.45,126.39,3.22767242]
[1769017562776,124.5481701,126.51,126.39,3.22767242]
[1769017562973,19.59903157,126.5,126.39,114.08527242]
[1769017563171,110.7567,126.52,126.43,3.22767242]
[1769017563172,6.19048242,126.49,126.43,3.22767242]
[1769017563387,110.7255,126.55,126.45,3.22767242]
[1769017563781,14.33751405,126.55,126.45,10.35097242]
[1769017563992,7.1182,126.55,126.45,3.22767242]
[1769017564278,14.33611405,126.57,126.47,10.34987242]
[1769017564475,7.21931405,126.59,126.48,3.22767242]
[1769017564677,13.7834701,126.6,126.48,3.22767242]
[1769017564878,7.1163,126.58,126.49,7.1208]
[1769017565283,7.1163,126.58,126.49,10.34847242]
[1769017565475,14.33461405,126.6,126.5,10.34807242]
[1769017565675,7.1153,126.6,126.5,10.34807242]
[1769017566084,110.6791,126.6,126.5,3.22767242]
[1769017566291,6.11952402,126.59,126.5,3.22767242]
[1769017566486,7.21931405,126.61,126.5,3.22767242]
[1769017566675,116.79831076,126.6,126.49,7.1208]
[1769017566986,124.4627701,126.6,126.49,7.1208]
[1769017567188,124.4627701,126.6,126.49,10.34847242]
[1769017567685,117.89861405,126.6,126.5,3.22767242]
[1769017567885,117.89221405,126.61,126.5,10.34807242]
[1769017568092,110.6962,126.58,126.47,3.22767242]
[1769017568381,110.6901,126.59,126.47,3.22767242]
[1769017568587,7.1168,126.57,126.48,10.34927242]
[1769017569087,110.6986,126.58,126.48,3.22767242]
[1769017569586,110.6901,126.59,126.48,3.22767242]
[1769017569587,7.1171,126.57,126.48,3.22767242]
[1769017570381,7.1159,126.59,126.5,3.22767242]
[1769017570888,110.6802,126.6,126.5,3.22767242]
[1769017571088,7.1163,126.58,126.5,3.22767242]
[1769017571683,7.1163,126.58,126.5,10.34807242]
[1769017571989,110.6729,126.61,126.5,3.22767242]
[1769017572184,124.4411701,126.63,126.51,10.34757242]
[1769017572392,116.78994156,126.62,126.52,3.22767242]
[1769017572582,7.1158,126.59,126.52,3.22767242]
[1769017573583,110.6915,126.59,126.49,10.34847242]
[1769017573785,110.6813,126.6,126.5,3.22767242]
[1769017574192,7.116,126.59,126.51,3.22767242]
[1769017574487,110.6617,126.62,126.51,3.22767242]
[1769017574786,7.1151,126.6,126.53,3.22767242]
[1769017575285,6.09807752,126.59,126.53,3.22767242]
[1769017575484,7.1157,126.59,126.53,3.22767242]
[1769017576194,7.1147,126.61,126.53,3.22767242]
[1769017576492,6.09818193,126.6,126.53,3.22767242]
[1769017576690,6.09818193,126.59,126.53,3.22767242]
[1769017576884,7.1146,126.61,126.53,3.22767242]
[1769017577089,110.6478,126.64,126.53,3.22767242]
[1769017577090,6.09758789,126.6,126.53,3.22767242]
[1769017577393,117.86711405,126.64,126.53,3.22767242]
[1769017577394,110.6478,126.64,126.53,3.22767242]
[1769017577594,12.22606525,126.63,126.53,3.22767242]
[1769017577796,6.09699905,126.62,126.53,3.22767242]
[1769017578000,6.09699905,126.61,126.53,3.22767242]
[1769017578290,6.09699905,126.6,126.5,10.26080307]
[1769017578489,6.09699905,126.59,126.51,3.14060307]
[1769017578693,13.21319905,126.58,126.51,3.14060307]
[1769017578889,6.09699905,126.57,126.51,3.14060307]
[1769017579289,7.1155,126.6,126.51,3.14060307]
[1769017579594,6.09799631,126.59,126.51,3.14060307]
[1769017579892,124.42779631,126.62,126.53,3.14060307]
[1769017579893,6.09799631,126.58,126.53,3.14060307]
[1769017580092,13.76439631,126.62,126.53,3.14060307]
[1769017580392,6.09685507,126.61,126.53,3.14060307]
[1769017580591,6.09685507,126.6,126.53,3.14060307]
[1769017580786,6.09685507,126.59,126.53,3.14060307]
[1769017580987,7.1145,126.61,126.53,10.25930307]
[1769017581187,6.09683141,126.6,126.53,10.25930307]
[1769017581389,6.09683141,126.59,126.53,10.25930307]
[1769017581584,7.1145,126.61,126.53,10.25930307]
[1769017581785,6.09729451,126.6,126.53,10.25930307]
[1769017581990,6.09729451,126.59,126.53,10.25930307]
[1769017582190,7.1145,126.61,126.53,10.25930307]
[1769017582390,6.09710779,126.6,126.53,10.25930307]
[1769017582695,6.09710779,126.59,126.53,10.25930307]
[1769017582896,7.1145,126.61,126.53,10.25930307]
[1769017583200,6.09705367,126.6,126.54,7.1183]
[1769017583388,7.1145,126.61,126.54,7.1183]
[1769017583389,6.09705367,126.59,126.54,7.1183]
[1769017583589,7.1145,126.61,126.54,7.1183]
[1769017583791,6.09684311,126.6,126.55,7.1177]
[1769017584095,7.1145,126.61,126.53,3.14060307]
[1769017584297,6.09613765,126.6,126.53,3.14060307]
[1769017584497,7.1145,126.61,126.53,3.14060307]
[1769017584698,6.09646994,126.6,126.53,3.14060307]
[1769017584893,7.1138,126.63,126.54,3.14060307]
[1769017585195,6.09637684,126.62,126.54,3.14060307]
[1769017585399,6.09637684,126.61,126.54,3.14060307]
[1769017585603,7.21931405,126.64,126.54,3.14060307]
[1769017585790,6.09600019,126.63,126.54,3.14060307]
[1769017585991,6.09600019,126.62,126.54,3.14060307]
[1769017586291,6.09600019,126.61,126.54,3.14060307]
[1769017586596,6.09600019,126.6,126.54,3.14060307]
[1769017586898,7.21931405,126.63,126.54,3.14060307]
[1769017587100,6.09605563,126.62,126.54,3.14060307]
[1769017587298,6.09605563,126.61,126.54,3.14060307]
[1769017587595,6.09605563,126.61,126.49,3.14060307]
[1769017587596,130.02549937,126.6,126.49,3.14060307]
[1769017587894,6.09605563,126.59,126.49,3.14060307]
[1769017588098,6.09605563,126.58,126.49,3.14060307]
[1769017588595,6.09605563,126.58,126.5,7.1204]
[1769017589695,7.1173,126.56,126.49,3.14060307]
[1769017590001,7.21931405,126.6,126.5,3.14060307]
[1769017590200,6.0980652,126.59,126.52,3.14060307]
[1769017590396,7.1148,126.61,126.54,10.25890307]
[1769017590591,6.09776694,126.6,126.54,3.14060307]
[1769017590785,7.1148,126.61,126.54,3.14060307]
[1769017590990,6.09724296,126.6,126.54,3.14060307]
[1769017591201,6.0978565,126.59,126.54,3.14060307]
[1769017591401,7.1141,126.62,126.55,7.1178]
[1769017591602,6.07979973,126.61,126.55,7.1178]
[1769017591801,6.07979973,126.6,126.54,3.14060307]
[1769017592101,6.08014457,126.59,126.54,3.14060307]
[1769017592302,7.21931405,126.63,126.54,3.14060307]
[1769017592504,6.08048041,126.62,126.54,3.14060307]
[1769017592694,6.08048041,126.61,126.54,3.14060307]
[1769017592896,6.08048041,126.6,126.54,3.14060307]
[1769017593096,6.08048041,126.59,126.54,3.14060307]
[1769017593399,7.21931405,126.64,126.54,3.14060307]
[1769017593601,6.08053133,126.63,126.54,3.14060307]
[1769017593901,6.08053133,126.62,126.56,7.1171]
[1769017594097,6.08053133,126.61,126.56,7.1171]
[1769017594304,7.21931405,126.65,126.56,10.25770307]
[1769017594505,19.32958862,126.64,126.54,7.118]
[1769017594705,6.08045602,126.63,126.54,10.25860307]
[1769017595503,7.1145,126.61,126.54,3.14060307]
[1769017595703,6.08045602,126.6,126.54,3.14060307]
[1769017595902,7.1145,126.61,126.54,3.14060307]
[1769017596102,6.08025767,126.6,126.54,3.14060307]
[1769017596299,7.1145,126.61,126.54,3.14060307]
[1769017596610,7.1137,126.63,126.54,3.14060307]
[1769017596803,6.07922119,126.62,126.56,10.25770307]
[1769017597108,7.1137,126.63,126.56,10.25770307]
[1769017597311,6.07795559,126.62,126.56,10.25770307]
[1769017597505,7.1137,126.63,126.56,10.25770307]
[1769017597710,6.07795559,126.62,126.57,10.25710307]
[1769017598010,7.21931405,126.66,126.58,3.14060307]
[1769017598196,6.07784987,126.65,126.58,3.14060307]
[1769017598397,6.07784987,126.64,126.58,3.14060307]
[1769017598707,6.07784987,126.63,126.58,3.14060307]
[1769017598908,7.1128,126.64,126.58,3.14060307]
[1769017599110,6.07661757,126.63,126.58,3.14060307]
[1769017599309,117.84781405,126.66,126.55,3.14060307]
[1769017599606,6.0754913,126.65,126.55,3.14060307]
[1769017599805,6.0754913,126.64,126.55,3.14060307]
[1769017600005,6.0754913,126.63,126.55,3.14060307]
[1769017600205,7.21931405,126.66,126.58,7.1161]
[1769017600402,6.07444215,126.65,126.58,7.1161]
[1769017600606,6.07444215,126.64,126.58,10.25670307]
[1769017600801,7.1121,126.66,126.58,10.25670307]
[1769017601110,6.07353006,126.65,126.58,10.25670307]
[1769017601310,7.1121,126.66,126.58,10.25670307]
[1769017601504,6.0714803,126.65,126.58,10.25670307]
[1769017601707,7.1121,126.66,126.58,10.25670307]
[1769017601902,6.06551278,126.65,126.58,10.25670307]
[1769017602103,7.1121,126.66,126.58,10.25670307]
[1769017602306,6.06385638,126.65,126.58,10.25670307]
[1769017602506,7.1121,126.66,126.58,10.25670307]
[1769017602798,6.06385638,126.65,126.58,10.25670307]
[1769017602998,13.76439631,126.68,126.58,10.25670307]
[1769017603204,116.68322886,126.67,126.57,7.1167]
[1769017603406,19.30158202,126.66,126.57,7.1167]
[1769017603606,6.06322886,126.65,126.57,7.1167]
[1769017603798,6.06322886,126.64,126.57,7.1167]
[1769017603998,6.06322886,126.63,126.57,7.1167]
[1769017604212,7.21931405,126.66,126.57,10.25730307]
[1769017604413,13.23897567,126.66,126.57,10.25730307]
[1769017604911,7.1128,126.64,126.57,10.25730307]
[1769017605213,6.01966162,126.63,126.57,10.25730307]
[1769017605409,7.1128,126.64,126.57,10.25730307]
[1769017605716,6.01976148,126.63,126.57,10.25730307]
[1769017605916,13.76439631,126.68,126.59,3.3589969]
[1769017606110,19.25760233,126.67,126.59,3.3589969]
[1769017606313,13.13094708,126.66,126.59,3.3589969]
[1769017606510,7.21931405,126.67,126.59,3.3589969]
[1769017606511,6.01924708,126.65,126.59,3.3589969]
[1769017606705,13.76439631,126.68,126.59,3.3589969]
[1769017606906,7.1117,126.66,126.59,10.4745969]
[1769017607111,6.0246243,126.65,126.59,10.4745969]
[1769017607309,6.0246243,126.64,126.59,10.4745969]
[1769017607509,7.1117,126.66,126.59,10.4745969]
[1769017607706,6.03447993,126.65,126.59,10.4745969]
[1769017607902,7.1117,126.66,126.59,10.4745969]
[1769017608104,6.03419536,126.65,126.59,10.4745969]
[1769017608310,6.03419536,126.65,126.61,3.3589969]
[1769017608509,14.33021405,126.68,126.61,3.3589969]
[1769017608709,6.04011966,126.67,126.61,3.3589969]
[1769017608910,6.04011966,126.66,126.61,3.3589969]
[1769017609211,7.1109,126.68,126.61,3.3589969]
[1769017609413,6.04073725,126.67,126.61,3.3589969]
[1769017609612,6.04073725,126.66,126.61,3.3589969]
[1769017609812,7.1099,126.7,126.62,3.3589969]
[1769017610013,6.04039675,126.69,126.62,3.3589969]
[1769017610215,6.04039675,126.68,126.62,3.3589969]
[1769017610418,6.04039675,126.67,126.62,3.3589969]
[1769017610718,7.11,126.69,126.62,3.3589969]
[1769017610918,6.03814921,126.68,126.62,3.3589969]
[1769017611116,6.03814921,126.67,126.62,3.3589969]
[1769017611312,7.11,126.69,126.62,10.4727969]
[1769017611616,6.0359865,126.68,126.59,3.3589969]
[1769017611806,6.0359865,126.67,126.59,3.3589969]
[1769017612116,6.0359865,126.66,126.6,10.4739969]
[1769017612318,7.111,126.68,126.6,10.4739969]
[1769017612521,6.00166798,126.67,126.6,10.4739969]
[1769017612816,6.00166798,126.66,126.6,7.115]
[1769017613121,7.111,126.68,126.61,3.3589969]
[1769017613320,6.00230419,126.67,126.61,3.3589969]
[1769017613523,6.00230419,126.66,126.61,3.3589969]
[1769017613816,7.111,126.68,126.61,3.3589969]
[1769017614022,6.00142313,126.67,126.61,10.4732969]
[1769017614216,7.21931405,126.71,126.62,3.3589969]
[1769017614614,7.21931405,126.72,126.62,3.3589969]
[1769017614813,5.95165975,126.71,126.62,3.3589969]
[1769017615017,7.21931405,126.72,126.62,3.3589969]
[1769017615212,7.21931405,126.73,126.62,3.3589969]
[1769017615423,5.94993928,126.72,126.62,3.3589969]
[1769017615717,7.21931405,126.73,126.65,3.3589969]
[1769017616020,5.94951893,126.72,126.65,3.3589969]
[1769017616221,7.21931405,126.73,126.65,3.3589969]
[1769017616422,7.1083,126.72,126.65,3.3589969]
[1769017618224,7.1075,126.74,126.65,3.3589969]
[1769017618820,7.21931405,126.74,126.65,3.3589969]
[1769017619326,6.54508226,126.71,126.6,3.23754613]
[1769017619518,13.76439631,126.71,126.6,3.23754613]
[1769017619722,13.16306893,126.7,126.6,3.23754613]
[1769017619922,7.1106,126.68,126.61,7.1144]
[1769017620320,7.1106,126.68,126.6,3.23754613]
[1769017620521,14.32911405,126.7,126.62,7.1139]
[1769017620830,7.21931405,126.71,126.63,3.23754613]
[1769017621027,7.21931405,126.73,126.63,3.23754613]
[1769017621223,110.5476,126.75,126.65,3.23754613]
[1769017621619,119.1346604,126.76,126.65,3.23754613]
[1769017621820,7.1078,126.73,126.65,10.34924613]
[1769017622227,110.5516,126.75,126.65,3.23754613]
[1769017622427,7.1085,126.72,126.65,3.23754613]
[1769017622632,111.91534635,126.76,126.65,3.23754613]
[1769017623022,7.21931405,126.77,126.66,3.23754613]
[1769017623332,117.73891405,126.79,126.67,3.23754613]
[1769017623527,5.8558634,126.78,126.68,3.23754613]
[1769017623833,312.40439631,126.83,126.71,3.23754613]
[1769017624020,298.64,126.83,126.72,3.23754613]
[1769017624222,110.468,126.85,126.74,3.23754613]
[1769017624421,110.4741,126.84,126.74,3.23754613]
[1769017624621,110.468,126.85,126.74,3.23754613]
[1769017624822,6.54508226,126.86,126.74,3.23754613]
[1769017625019,110.4491,126.87,126.75,3.23754613]
[1769017625220,7.1017,126.84,126.76,3.23754613]
[1769017625422,110.463,126.85,126.76,3.23754613]
[1769017625623,110.4698,126.84,126.72,3.23754613]
[1769017625925,110.463,126.85,126.73,3.23754613]
[1769017626229,117.00088226,126.86,126.73,3.23754613]
[1769017626230,5.93485203,126.84,126.73,3.23754613]
[1769017626431,7.1012,126.85,126.76,10.34344613]
[1769017626631,7.1012,126.85,126.77,3.23754613]
[1769017626931,110.4612,126.85,126.77,3.23754613]
[1769017627127,116.99918226,126.86,126.77,3.23754613]
[1769017629027,7.1017,126.84,126.77,3.23754613]
[1769017629439,116.99918226,126.86,126.74,3.23754613]
[1769017629641,7.1028,126.82,126.74,3.23754613]
[1769017629836,116.97648226,126.89,126.76,3.23754613]
[1769017630139,409.0244,126.9,126.79,10.34174613]
[1769017630140,7.0995,126.88,126.79,10.34174613]
[1769017630341,15.70892106,126.92,126.8,3.23754613]
[1769017630534,5.90281364,126.91,126.8,3.23754613]
[1769017630733,126.11132106,126.92,126.8,3.23754613]
[1769017631044,7.0989,126.89,126.81,3.23754613]
[1769017631729,7.0989,126.89,126.78,10.34204613]
[1769017631730,110.4255,126.89,126.78,10.34204613]
[1769017631930,110.4199,126.9,126.78,10.34204613]
[1769017631931,110.4199,126.9,126.78,3.23754613]
[1769017632631,110.4199,126.9,126.77,110.5217]
[1769017632632,110.4261,126.89,126.79,10.34174613]
[1769017633238,7.1,126.87,126.8,3.23754613]
[1769017633431,126.11132106,126.92,126.8,3.23754613]
[1769017633432,126.11132106,126.92,126.82,3.23754613]
[1769017634735,16.2610388,126.92,126.83,10.33944613]
[1769017634929,9.1638388,126.92,126.83,3.23754613]
[1769017635238,7.0985,126.9,126.83,3.23754613]
[1769017635637,110.4234,126.9,126.8,3.32018612]
[1769017636033,7.0994,126.88,126.81,3.32018612]
[1769017637242,7.0986,126.9,126.81,10.42318612]
[1769017637442,10.53591624,126.92,126.82,3.32018612]
[1769017637640,9.1638388,126.92,126.82,3.32018612]
[1769017638035,7.0983,126.9,126.82,10.42238612]
[1769017638537,16.2611388,126.92,126.84,3.32018612]
[1769017638941,9.1638388,126.92,126.84,3.32018612]
[1769017639142,9.1638388,126.92,126.86,7.1001]
[1769017639338,9.1638388,126.92,126.86,3.32018612]
[1769017640642,7.0978,126.91,126.84,7.1013]
[1769017640836,9.1638388,126.92,126.82,3.32018612]
[1769017641343,7.0983,126.9,126.82,10.42248612]
[1769017641636,7.0983,126.9,126.76,3.32018612]
[1769017641637,110.4257,126.89,126.76,3.32018612]
[1769017641837,110.4606,126.85,126.73,3.32018612]
[1769017642039,110.4724,126.84,126.73,3.32018612]
[1769017642231,110.4867,126.82,126.7,3.32018612]
[1769017642438,7.1041,126.8,126.72,7.1081]
[1769017642631,6.51219357,126.82,126.72,3.32018612]
[1769017643038,13.61529357,126.82,126.74,7.107]
[1769017643242,6.51219357,126.85,126.75,3.32018612]
[1769017643442,6.51219357,126.85,126.76,3.32018612]
[1769017643838,13.61339357,126.85,126.76,3.32018612]
[1769017644745,6.51219357,126.85,126.74,7.1069]
[1769017645043,110.447,126.87,126.75,3.32018612]
[1769017645342,7.1017,126.84,126.75,3.32018612]
[1769017645547,110.4721,126.84,126.71,3.32018612]
[1769017645733,116.97269357,126.85,126.72,113.89048612]
[1769017646132,6.51219357,126.82,126.72,10.42798612]
[1769017647042,116.97229357,126.86,126.75,10.42668612]
[1769017647243,7.1014,126.85,126.75,10.42668612]
[1769017647644,6.51219357,126.89,126.78,3.32018612]
[1769017647837,7.0995,126.88,126.78,3.32018612]
[1769017648639,7.1,126.87,126.78,10.42468612]
[1769017648942,110.4436,126.87,126.78,3.32018612]
[1769017649243,110.4352,126.88,126.77,7.1053]
[1769017649445,110.4488,126.87,126.75,3.32018612]
[1769017649841,7.1015,126.85,126.76,7.1059]
[1769017650244,7.1015,126.85,126.76,10.42608612]
[1769017650839,7.1019,126.84,126.76,3.32018612]
[1769017652451,7.1019,126.84,126.72,110.5708]
[1769017652452,7.1032,126.82,126.72,10.42808612]
[1769017652648,110.477,126.84,126.72,10.42808612]